[Event "*** SCC Grand Prix: Titled Tuesday Blitz"]
[Site "Chess.com"]
[Date "2020.09.08"]
[Round "8"]
[White "DvaHrasta"]
[Black "Jenia84"]
[Result "0-1"]
[WhiteElo "2462"]
[BlackElo "2334"]
[TimeControl "180+1"]
[EndTime "11:36:53 PDT"]
[Termination "Jenia84 won on time"]

1. c4 {[%clk 0:03:00.9]} 1... Nf6 {[%clk 0:02:59.1]} 2. g3 {[%clk 0:03:00.6]}
2... e5 {[%clk 0:02:56]} 3. Bg2 {[%clk 0:02:59.8]} 3... d5 {[%clk 0:02:55.9]} 4.
cxd5 {[%clk 0:02:59]} 4... Nxd5 {[%clk 0:02:55.9]} 5. Nf3 {[%clk 0:02:58.5]}
5... Bd6 {[%clk 0:02:47]} 6. O-O {[%clk 0:02:55.5]} 6... O-O {[%clk 0:02:46]} 7.
b3 {[%clk 0:02:44.3]} 7... c5 {[%clk 0:02:45.3]} 8. Bb2 {[%clk 0:02:42.9]} 8...
Nc6 {[%clk 0:02:45.3]} 9. Na3 {[%clk 0:02:42.3]} 9... a6 {[%clk 0:02:41.2]} 10.
Rc1 {[%clk 0:02:41.7]} 10... Be6 {[%clk 0:02:37]} 11. Nc4 {[%clk 0:02:36.6]}
11... f6 {[%clk 0:02:31]} 12. e3 {[%clk 0:02:31.3]} 12... Rc8 {[%clk 0:02:25.5]}
13. d4 {[%clk 0:02:22.6]} 13... cxd4 {[%clk 0:02:20.3]} 14. exd4 {[%clk
0:02:21.1]} 14... e4 {[%clk 0:02:16.4]} 15. Ne1 {[%clk 0:02:07.6]} 15... f5
{[%clk 0:02:13.6]} 16. Nc2 {[%clk 0:02:04.2]} 16... Be7 {[%clk 0:02:08.1]} 17.
N2e3 {[%clk 0:02:00]} 17... b5 {[%clk 0:02:03.5]} 18. Nxd5 {[%clk 0:01:52.9]}
18... bxc4 {[%clk 0:01:40.1]} 19. Nxe7+ {[%clk 0:01:39.9]} 19... Nxe7 {[%clk
0:01:39.5]} 20. d5 {[%clk 0:01:28.8]} 20... Qxd5 {[%clk 0:01:29.8]} 21. bxc4
{[%clk 0:01:11]} 21... Rxc4 {[%clk 0:01:04.7]} 22. Rxc4 {[%clk 0:01:06.5]} 22...
Qxd1 {[%clk 0:00:43.9]} 23. Rxd1 {[%clk 0:01:06.2]} 23... Bxc4 {[%clk
0:00:43.4]} 24. Rd7 {[%clk 0:01:05.7]} 24... Re8 {[%clk 0:00:37.8]} 25. a3
{[%clk 0:00:59.1]} 25... Kf7 {[%clk 0:00:28.4]} 26. g4 {[%clk 0:00:58.6]} 26...
g6 {[%clk 0:00:28]} 27. Bh3 {[%clk 0:00:58.2]} 27... Ke6 {[%clk 0:00:25.6]} 28.
Rc7 {[%clk 0:00:48.2]} 28... Bb5 {[%clk 0:00:24.2]} 29. g5 {[%clk 0:00:38.6]}
29... Rc8 {[%clk 0:00:23.4]} 30. Rxc8 {[%clk 0:00:26.6]} 30... Nxc8 {[%clk
0:00:22.6]} 31. f3 {[%clk 0:00:20]} 31... Nd6 {[%clk 0:00:21.8]} 32. Bc1 {[%clk
0:00:14.9]} 32... exf3 {[%clk 0:00:19.7]} 33. Kf2 {[%clk 0:00:15]} 33... Be2
{[%clk 0:00:16.4]} 34. Bf1 {[%clk 0:00:07.7]} 34... Ne4+ {[%clk 0:00:16]} 35.
Ke1 {[%clk 0:00:05.7]} 35... Bxf1 {[%clk 0:00:15.2]} 36. Kxf1 {[%clk 0:00:06.6]}
36... Nc3 {[%clk 0:00:06.9]} 37. Kf2 {[%clk 0:00:05.3]} 37... Ne2 {[%clk
0:00:06.8]} 38. Bd2 {[%clk 0:00:02.5]} 38... Nd4 {[%clk 0:00:06.5]} 39. Be3
{[%clk 0:00:02.7]} 39... Kd5 {[%clk 0:00:06.6]} 40. h4 {[%clk 0:00:02.4]} 40...
Ke4 {[%clk 0:00:06.7]} 41. Bd2 {[%clk 0:00:01.9]} 41... Nc2 {[%clk 0:00:06.7]}
0-1

[Event "*** SCC Grand Prix: Titled Tuesday Blitz"]
[Site "Chess.com"]
[Date "2020.09.08"]
[Round "8"]
[White "Zmof"]
[Black "allvim"]
[Result "1-0"]
[WhiteElo "2239"]
[BlackElo "2344"]
[TimeControl "180+1"]
[EndTime "11:36:53 PDT"]
[Termination "Zmof won by resignation"]

1. e4 {[%clk 0:03:00.9]} 1... c6 {[%clk 0:03:00.4]} 2. d4 {[%clk 0:02:58.4]}
2... d5 {[%clk 0:03:00.8]} 3. Nc3 {[%clk 0:02:59]} 3... dxe4 {[%clk 0:03:01]} 4.
Nxe4 {[%clk 0:02:59.5]} 4... Nf6 {[%clk 0:03:01.7]} 5. Nxf6+ {[%clk 0:02:57.7]}
5... exf6 {[%clk 0:03:02.6]} 6. Bc4 {[%clk 0:02:56.9]} 6... Bd6 {[%clk
0:03:02.6]} 7. Qe2+ {[%clk 0:02:56.1]} 7... Be7 {[%clk 0:02:58.1]} 8. Nf3 {[%clk
0:02:55.7]} 8... O-O {[%clk 0:02:58.3]} 9. Be3 {[%clk 0:02:54.5]} 9... Re8
{[%clk 0:02:56.8]} 10. O-O {[%clk 0:02:54.5]} 10... Nd7 {[%clk 0:02:56.9]} 11.
Rfe1 {[%clk 0:02:52.1]} 11... Nf8 {[%clk 0:02:57.2]} 12. Rad1 {[%clk 0:02:51.2]}
12... Bg4 {[%clk 0:02:57.1]} 13. d5 {[%clk 0:02:46.3]} 13... cxd5 {[%clk
0:02:46.5]} 14. Bxd5 {[%clk 0:02:45.9]} 14... Qc7 {[%clk 0:02:46.4]} 15. h3
{[%clk 0:02:42]} 15... Bh5 {[%clk 0:02:39.1]} 16. c4 {[%clk 0:02:37.7]} 16...
Bc5 {[%clk 0:02:30]} 17. Qd2 {[%clk 0:02:34.3]} 17... Rad8 {[%clk 0:02:25]} 18.
Bxc5 {[%clk 0:02:30.7]} 18... Qxc5 {[%clk 0:02:25.9]} 19. Rxe8 {[%clk
0:02:29.7]} 19... Rxe8 {[%clk 0:02:22.3]} 20. b3 {[%clk 0:02:12.8]} 20... b6
{[%clk 0:02:14.2]} 21. b4 {[%clk 0:01:47.6]} 21... Qc7 {[%clk 0:02:09.2]} 22. a3
{[%clk 0:01:44.4]} 22... Ne6 {[%clk 0:01:59.6]} 23. Re1 {[%clk 0:01:42.3]} 23...
Rd8 {[%clk 0:01:55.5]} 24. Qe3 {[%clk 0:01:39.6]} 24... Nf8 {[%clk 0:01:40.7]}
25. Qe7 {[%clk 0:01:30.2]} 25... Rd7 {[%clk 0:01:33.9]} 26. Qe8 {[%clk
0:01:29.5]} 26... h6 {[%clk 0:01:14.2]} 27. Nd4 {[%clk 0:01:23]} 27... Qd8
{[%clk 0:01:04.5]} 28. Nf5 {[%clk 0:01:15.4]} 28... Bg6 {[%clk 0:00:49.8]} 29.
Ne7+ {[%clk 0:01:02]} 29... Kh7 {[%clk 0:00:45.5]} 30. Nxg6 {[%clk 0:00:56.5]}
30... fxg6 {[%clk 0:00:29.2]} 31. Qxd8 {[%clk 0:00:48.7]} 31... Rxd8 {[%clk
0:00:29.1]} 32. Re7 {[%clk 0:00:49.4]} 32... Nd7 {[%clk 0:00:29.6]} 33. f4
{[%clk 0:00:42.9]} 33... a5 {[%clk 0:00:25.8]} 34. Kf2 {[%clk 0:00:42.6]} 34...
f5 {[%clk 0:00:17.7]} 35. Ke3 {[%clk 0:00:40.9]} 35... Nf6 {[%clk 0:00:17.8]}
36. Kd4 {[%clk 0:00:39.7]} 36... axb4 {[%clk 0:00:16.7]} 37. axb4 {[%clk
0:00:39.5]} 37... Ne4 {[%clk 0:00:15.7]} 38. Re6 {[%clk 0:00:35.2]} 38... b5
{[%clk 0:00:12.7]} 39. cxb5 {[%clk 0:00:29.7]} 39... Nf6 {[%clk 0:00:12.6]} 40.
Re5 {[%clk 0:00:30.1]} 40... Rb8 {[%clk 0:00:11.6]} 41. Kc5 {[%clk 0:00:29.1]}
41... Nd7+ {[%clk 0:00:11.9]} 42. Kc6 {[%clk 0:00:27.3]} 42... Nxe5+ {[%clk
0:00:08.8]} 43. fxe5 {[%clk 0:00:27.6]} 43... g5 {[%clk 0:00:06.1]} 44. b6
{[%clk 0:00:27.7]} 44... Kg6 {[%clk 0:00:06.1]} 45. b7 {[%clk 0:00:28]} 45... f4
{[%clk 0:00:04.3]} 46. Kc7 {[%clk 0:00:28.3]} 46... Re8 {[%clk 0:00:04.5]} 47.
b8=Q {[%clk 0:00:28.1]} 47... Rxb8 {[%clk 0:00:05.1]} 48. Kxb8 {[%clk
0:00:28.5]} 48... Kf5 {[%clk 0:00:05.8]} 49. b5 {[%clk 0:00:25]} 49... Kxe5
{[%clk 0:00:05.7]} 50. Bf3 {[%clk 0:00:24.2]} 50... g6 {[%clk 0:00:05.9]} 51. b6
{[%clk 0:00:24]} 51... h5 {[%clk 0:00:06.8]} 1-0

[Event "*** SCC Grand Prix: Titled Tuesday Blitz"]
[Site "Chess.com"]
[Date "2020.09.08"]
[Round "8"]
[White "XDPS"]
[Black "m_ezat"]
[Result "0-1"]
[WhiteElo "2779"]
[BlackElo "2612"]
[TimeControl "180+1"]
[EndTime "11:36:54 PDT"]
[Termination "m_ezat won by resignation"]

1. d4 {[%clk 0:03:00]} 1... Nf6 {[%clk 0:02:59.6]} 2. Nf3 {[%clk 0:02:58.1]}
2... g6 {[%clk 0:02:59.9]} 3. Nbd2 {[%clk 0:02:57.9]} 3... d5 {[%clk 0:02:59.3]}
4. e3 {[%clk 0:02:57.2]} 4... Bg7 {[%clk 0:02:59.6]} 5. b4 {[%clk 0:02:57.8]}
5... O-O {[%clk 0:02:53.5]} 6. c4 {[%clk 0:02:57.5]} 6... a5 {[%clk 0:02:53]} 7.
b5 {[%clk 0:02:57.7]} 7... c5 {[%clk 0:02:53.6]} 8. dxc5 {[%clk 0:02:58.6]} 8...
Ne4 {[%clk 0:02:52.4]} 9. Nxe4 {[%clk 0:02:58.8]} 9... dxe4 {[%clk 0:02:48.7]}
10. Nd4 {[%clk 0:02:59]} 10... Nd7 {[%clk 0:02:46.7]} 11. Ba3 {[%clk 0:02:59.2]}
11... Qc7 {[%clk 0:02:44.2]} 12. b6 {[%clk 0:02:27.7]} 12... Qe5 {[%clk
0:02:31]} 13. Rb1 {[%clk 0:02:27.7]} 13... Qg5 {[%clk 0:01:32]} 14. h4 {[%clk
0:02:15.1]} 14... Qf6 {[%clk 0:01:31.5]} 15. c6 {[%clk 0:02:10]} 15... Ne5
{[%clk 0:01:26.3]} 16. cxb7 {[%clk 0:02:00.6]} 16... Bxb7 {[%clk 0:01:25.8]} 17.
Be2 {[%clk 0:01:53.9]} 17... Rac8 {[%clk 0:01:25.5]} 18. c5 {[%clk 0:01:53]}
18... Rfd8 {[%clk 0:01:25.1]} 19. Rb3 {[%clk 0:01:28.7]} 19... h5 {[%clk
0:01:23.7]} 20. Qb1 {[%clk 0:01:00]} 20... Nd3+ {[%clk 0:00:58.9]} 21. Bxd3
{[%clk 0:01:00]} 21... exd3 {[%clk 0:00:59.1]} 22. Rxd3 {[%clk 0:01:00.9]} 22...
Be4 {[%clk 0:00:57.6]} 23. b7 {[%clk 0:00:52.4]} 23... Rb8 {[%clk 0:00:54.5]}
24. c6 {[%clk 0:00:48.2]} 24... Bxd3 {[%clk 0:00:54.8]} 25. Qxd3 {[%clk
0:00:47.7]} 25... e5 {[%clk 0:00:54.8]} 26. c7 {[%clk 0:00:36.4]} 26... exd4
{[%clk 0:00:54.7]} 27. cxb8=Q {[%clk 0:00:16.8]} 27... Rxb8 {[%clk 0:00:53.7]}
28. Qe4 {[%clk 0:00:13.4]} 28... Qa6 {[%clk 0:00:45.1]} 29. exd4 {[%clk
0:00:10.8]} 29... Rxb7 {[%clk 0:00:40]} 30. Rh3 {[%clk 0:00:11.1]} 30... Bf6
{[%clk 0:00:37.6]} 31. Re3 {[%clk 0:00:09.3]} 31... Kg7 {[%clk 0:00:34.4]} 32.
g3 {[%clk 0:00:06.7]} 32... Rb6 {[%clk 0:00:28.7]} 33. Bc5 {[%clk 0:00:05.8]}
33... Rb2 {[%clk 0:00:26.9]} 34. Re2 {[%clk 0:00:05.1]} 34... Rb8 {[%clk
0:00:24.9]} 35. Kf1 {[%clk 0:00:05.1]} 35... Rb2 {[%clk 0:00:23.9]} 36. Ke1
{[%clk 0:00:04.8]} 36... Rb8 {[%clk 0:00:23.8]} 37. f3 {[%clk 0:00:05.4]} 37...
a4 {[%clk 0:00:20.4]} 38. Kf2 {[%clk 0:00:05.8]} 38... a3 {[%clk 0:00:20.7]} 39.
Kg2 {[%clk 0:00:06.3]} 39... Rb2 {[%clk 0:00:20.5]} 40. Kf2 {[%clk 0:00:05.6]}
40... Qc4 {[%clk 0:00:19.4]} 41. Rxb2 {[%clk 0:00:02.7]} 41... axb2 {[%clk
0:00:19.1]} 42. Ba3 {[%clk 0:00:03.1]} 42... Qxa2 {[%clk 0:00:18.5]} 43. Bxb2
{[%clk 0:00:03.7]} 43... Qxb2+ {[%clk 0:00:19.1]} 44. Ke3 {[%clk 0:00:04.6]}
44... Qc3+ {[%clk 0:00:18.8]} 45. Qd3 {[%clk 0:00:04.6]} 45... Bxd4+ {[%clk
0:00:17.8]} 46. Ke4 {[%clk 0:00:05.1]} 46... Qxd3+ {[%clk 0:00:18.1]} 47. Kxd3
{[%clk 0:00:06]} 47... Bf2 {[%clk 0:00:18]} 0-1

[Event "*** SCC Grand Prix: Titled Tuesday Blitz"]
[Site "Chess.com"]
[Date "2020.09.08"]
[Round "8"]
[White "talyamania"]
[Black "winniethepooh04"]
[Result "1-0"]
[WhiteElo "2342"]
[BlackElo "2216"]
[TimeControl "180+1"]
[EndTime "11:36:55 PDT"]
[Termination "talyamania won by checkmate"]

1. e4 {[%clk 0:03:00.9]} 1... c5 {[%clk 0:02:29.6]} 2. Nf3 {[%clk 0:02:59.4]}
2... d6 {[%clk 0:01:28.8]} 3. d4 {[%clk 0:02:58.5]} 3... cxd4 {[%clk 0:01:27.9]}
4. Nxd4 {[%clk 0:02:59.4]} 4... Nf6 {[%clk 0:01:27.4]} 5. Nc3 {[%clk 0:02:59.4]}
5... a6 {[%clk 0:01:27.2]} 6. Bg5 {[%clk 0:02:58.2]} 6... e6 {[%clk 0:01:27.3]}
7. f4 {[%clk 0:02:57.3]} 7... Be7 {[%clk 0:01:27.5]} 8. Qf3 {[%clk 0:02:57.1]}
8... Qc7 {[%clk 0:01:27.9]} 9. O-O-O {[%clk 0:02:56.8]} 9... Nc6 {[%clk
0:01:27.5]} 10. g4 {[%clk 0:02:49.6]} 10... Bd7 {[%clk 0:01:19.5]} 11. Bg2
{[%clk 0:02:40.3]} 11... Nxd4 {[%clk 0:01:18.9]} 12. Rxd4 {[%clk 0:02:39.1]}
12... Bc6 {[%clk 0:01:19.8]} 13. Rhd1 {[%clk 0:02:38]} 13... b5 {[%clk 0:01:18]}
14. a3 {[%clk 0:02:27.9]} 14... a5 {[%clk 0:01:17.7]} 15. Qd3 {[%clk 0:02:24.1]}
15... Rb8 {[%clk 0:01:02.5]} 16. Bxf6 {[%clk 0:01:49.4]} 16... gxf6 {[%clk
0:00:58.5]} 17. a4 {[%clk 0:01:37.5]} 17... b4 {[%clk 0:00:44.5]} 18. Nb5 {[%clk
0:01:36.6]} 18... Bxb5 {[%clk 0:00:39.9]} 19. axb5 {[%clk 0:01:36.5]} 19... Qc5
{[%clk 0:00:33.2]} 20. e5 {[%clk 0:01:31.9]} 20... fxe5 {[%clk 0:00:27.9]} 21.
Rc4 {[%clk 0:01:27.9]} 21... Qf2 {[%clk 0:00:19.1]} 22. Bc6+ {[%clk 0:01:22.7]}
22... Kf8 {[%clk 0:00:17.5]} 23. fxe5 {[%clk 0:01:20.2]} 23... dxe5 {[%clk
0:00:16.7]} 24. Kb1 {[%clk 0:01:09.3]} 24... Rd8 {[%clk 0:00:16.7]} 25. Qf1
{[%clk 0:01:06.5]} 25... Rxd1+ {[%clk 0:00:10.9]} 26. Qxd1 {[%clk 0:01:05.6]}
26... Kg7 {[%clk 0:00:11.8]} 27. Re4 {[%clk 0:00:41.8]} 27... Rd8 {[%clk
0:00:11.4]} 28. Qe2 {[%clk 0:00:36.5]} 28... Qg1+ {[%clk 0:00:11.7]} 29. Ka2
{[%clk 0:00:35.9]} 29... a4 {[%clk 0:00:12.2]} 30. Qe3 {[%clk 0:00:21.7]} 30...
Qh1 {[%clk 0:00:09.7]} 31. Rxb4 {[%clk 0:00:19.3]} 31... Qd1 {[%clk 0:00:07]}
32. Rc4 {[%clk 0:00:12.3]} 32... a3 {[%clk 0:00:06.8]} 33. bxa3 {[%clk
0:00:09.7]} 33... Bf6 {[%clk 0:00:06.9]} 34. g5 {[%clk 0:00:08.7]} 34... Be7
{[%clk 0:00:06.4]} 35. Qe4 {[%clk 0:00:07.4]} 35... Rb8 {[%clk 0:00:03.3]} 36.
Ra4 {[%clk 0:00:06.1]} 36... Rd8 {[%clk 0:00:03.5]} 37. Ra7 {[%clk 0:00:05.7]}
37... Bd6 {[%clk 0:00:03.1]} 38. Rxf7+ {[%clk 0:00:03.5]} 38... Kxf7 {[%clk
0:00:02.5]} 39. Qxh7+ {[%clk 0:00:03.6]} 39... Kf8 {[%clk 0:00:03]} 40. Qh8+
{[%clk 0:00:02.2]} 40... Ke7 {[%clk 0:00:03.1]} 41. Qf6# {[%clk 0:00:02.1]} 1-0

[Event "*** SCC Grand Prix: Titled Tuesday Blitz"]
[Site "Chess.com"]
[Date "2020.09.08"]
[Round "8"]
[White "KaterynaLagno"]
[Black "bsnsun"]
[Result "1-0"]
[WhiteElo "2705"]
[BlackElo "2431"]
[TimeControl "180+1"]
[EndTime "11:36:56 PDT"]
[Termination "KaterynaLagno won by resignation"]

1. e4 {[%clk 0:03:00.9]} 1... c5 {[%clk 0:02:59.5]} 2. Nf3 {[%clk 0:02:57.5]}
2... d6 {[%clk 0:02:59.3]} 3. Bb5+ {[%clk 0:02:56.4]} 3... Nd7 {[%clk
0:02:57.2]} 4. Ba4 {[%clk 0:02:55.5]} 4... Nf6 {[%clk 0:02:53.3]} 5. O-O {[%clk
0:02:55.4]} 5... g6 {[%clk 0:02:51.8]} 6. Re1 {[%clk 0:02:54.7]} 6... Bg7 {[%clk
0:02:51]} 7. c3 {[%clk 0:02:55.3]} 7... a6 {[%clk 0:02:48.5]} 8. d4 {[%clk
0:02:54.7]} 8... O-O {[%clk 0:02:44.7]} 9. Nbd2 {[%clk 0:02:47.8]} 9... b5
{[%clk 0:02:31.4]} 10. Bc2 {[%clk 0:02:46.5]} 10... Bb7 {[%clk 0:02:29.5]} 11.
Nf1 {[%clk 0:02:41.9]} 11... e5 {[%clk 0:02:19.5]} 12. dxe5 {[%clk 0:02:25.9]}
12... dxe5 {[%clk 0:02:16.9]} 13. Bg5 {[%clk 0:02:13.1]} 13... Qc7 {[%clk
0:02:13.2]} 14. b3 {[%clk 0:01:50.8]} 14... c4 {[%clk 0:02:04.1]} 15. b4 {[%clk
0:01:47.6]} 15... h6 {[%clk 0:02:00.5]} 16. Bxf6 {[%clk 0:01:42.6]} 16... Nxf6
{[%clk 0:01:57.6]} 17. a4 {[%clk 0:01:43.5]} 17... Rfd8 {[%clk 0:01:55.5]} 18.
Qe2 {[%clk 0:01:43.3]} 18... Bc6 {[%clk 0:01:51.1]} 19. h3 {[%clk 0:01:24.7]}
19... a5 {[%clk 0:01:43.4]} 20. axb5 {[%clk 0:01:21.2]} 20... Bxb5 {[%clk
0:01:43.4]} 21. Ba4 {[%clk 0:01:18.2]} 21... Bxa4 {[%clk 0:01:08.8]} 22. Rxa4
{[%clk 0:01:19.1]} 22... axb4 {[%clk 0:01:09.1]} 23. Rxb4 {[%clk 0:01:19.2]}
23... Rdc8 {[%clk 0:01:09.4]} 24. N1d2 {[%clk 0:01:14.4]} 24... Bf8 {[%clk
0:00:54.4]} 25. Rxc4 {[%clk 0:01:13.3]} 25... Qa5 {[%clk 0:00:54.7]} 26. Rc1
{[%clk 0:00:50.5]} 26... Qa3 {[%clk 0:00:51.3]} 27. Qf1 {[%clk 0:00:47]} 27...
Nd7 {[%clk 0:00:37.6]} 28. Rxc8 {[%clk 0:00:44]} 28... Rxc8 {[%clk 0:00:37.5]}
29. Nc4 {[%clk 0:00:44.7]} 29... Qc5 {[%clk 0:00:36.4]} 30. Ne3 {[%clk
0:00:42.1]} 30... Qa3 {[%clk 0:00:36]} 31. Nd5 {[%clk 0:00:40.1]} 31... Qa4
{[%clk 0:00:29.2]} 32. c4 {[%clk 0:00:34.6]} 32... Bc5 {[%clk 0:00:20.9]} 33.
Rd1 {[%clk 0:00:31.5]} 33... Qc2 {[%clk 0:00:20.2]} 34. Ne3 {[%clk 0:00:19.4]}
34... Qa4 {[%clk 0:00:18.2]} 35. Qd3 {[%clk 0:00:16.2]} 35... Nf6 {[%clk
0:00:17.4]} 36. Nxe5 {[%clk 0:00:15.3]} 36... Bxe3 {[%clk 0:00:16.3]} 37. fxe3
{[%clk 0:00:16.2]} 37... Kg7 {[%clk 0:00:14.7]} 38. Rf1 {[%clk 0:00:16.1]} 38...
Re8 {[%clk 0:00:12.4]} 39. Qd4 {[%clk 0:00:16.1]} 39... Qa6 {[%clk 0:00:09.5]}
40. Ng4 {[%clk 0:00:15.7]} 40... Re6 {[%clk 0:00:06.8]} 41. Nxf6 {[%clk
0:00:15.6]} 41... Rxf6 {[%clk 0:00:07.1]} 42. c5 {[%clk 0:00:15.5]} 42... Qc6
{[%clk 0:00:05.7]} 43. Rxf6 {[%clk 0:00:13.9]} 43... Qxf6 {[%clk 0:00:05.5]} 44.
c6 {[%clk 0:00:13.8]} 1-0

[Event "*** SCC Grand Prix: Titled Tuesday Blitz"]
[Site "Chess.com"]
[Date "2020.09.08"]
[Round "8"]
[White "ChessLover0108"]
[Black "rasmussvane"]
[Result "1-0"]
[WhiteElo "2681"]
[BlackElo "2860"]
[TimeControl "180+1"]
[EndTime "11:36:57 PDT"]
[Termination "ChessLover0108 won by checkmate"]

1. d4 {[%clk 0:03:00.9]} 1... d5 {[%clk 0:03:00.1]} 2. c4 {[%clk 0:03:00.7]}
2... e6 {[%clk 0:03:00.5]} 3. Nc3 {[%clk 0:02:59.7]} 3... a6 {[%clk 0:03:01]} 4.
cxd5 {[%clk 0:02:57.2]} 4... exd5 {[%clk 0:03:01.9]} 5. Nf3 {[%clk 0:02:48.8]}
5... Nf6 {[%clk 0:03:02.4]} 6. Qb3 {[%clk 0:02:45.8]} 6... h6 {[%clk 0:02:49.6]}
7. Bf4 {[%clk 0:02:41.4]} 7... Bd6 {[%clk 0:02:49.9]} 8. e3 {[%clk 0:02:24.4]}
8... O-O {[%clk 0:02:49]} 9. Bd3 {[%clk 0:02:16.6]} 9... Re8 {[%clk 0:02:47.2]}
10. O-O {[%clk 0:02:15.7]} 10... c6 {[%clk 0:02:47.3]} 11. Rac1 {[%clk
0:02:07.6]} 11... Qe7 {[%clk 0:02:46.4]} 12. Rfe1 {[%clk 0:01:35]} 12... Nbd7
{[%clk 0:02:45.3]} 13. h3 {[%clk 0:01:34.8]} 13... Nf8 {[%clk 0:02:41]} 14. Na4
{[%clk 0:01:29.6]} 14... Ne6 {[%clk 0:02:35.4]} 15. Nb6 {[%clk 0:01:18.2]} 15...
Rb8 {[%clk 0:02:35.3]} 16. Bxd6 {[%clk 0:01:00]} 16... Qxd6 {[%clk 0:02:34.7]}
17. Ne5 {[%clk 0:01:00.9]} 17... Ng5 {[%clk 0:02:29.5]} 18. f3 {[%clk
0:00:49.7]} 18... Be6 {[%clk 0:02:18.1]} 19. Qa3 {[%clk 0:00:45.2]} 19... Qd8
{[%clk 0:02:15.5]} 20. Na4 {[%clk 0:00:42.9]} 20... Nd7 {[%clk 0:02:10.8]} 21.
f4 {[%clk 0:00:32.9]} 21... Nh7 {[%clk 0:01:46.7]} 22. Nc5 {[%clk 0:00:12.5]}
22... Ndf6 {[%clk 0:01:37.1]} 23. Rf1 {[%clk 0:00:05.8]} 23... Qe7 {[%clk
0:01:35.3]} 24. Qc3 {[%clk 0:00:04.8]} 24... Rbd8 {[%clk 0:01:33.4]} 25. b4
{[%clk 0:00:04.6]} 25... Nh5 {[%clk 0:01:29.7]} 26. a4 {[%clk 0:00:04.6]} 26...
N7f6 {[%clk 0:01:28.9]} 27. b5 {[%clk 0:00:04.3]} 27... axb5 {[%clk 0:01:22.6]}
28. axb5 {[%clk 0:00:05.2]} 28... Rc8 {[%clk 0:01:21.9]} 29. b6 {[%clk
0:00:04.7]} 29... Ra8 {[%clk 0:01:16.4]} 30. Ra1 {[%clk 0:00:05]} 30... Ng3
{[%clk 0:01:15.7]} 31. Rxa8 {[%clk 0:00:04.8]} 31... Rxa8 {[%clk 0:01:16.6]} 32.
Ra1 {[%clk 0:00:05.3]} 32... Rxa1+ {[%clk 0:00:53.3]} 33. Qxa1 {[%clk
0:00:06.2]} 33... Bf5 {[%clk 0:00:53.9]} 34. Bxf5 {[%clk 0:00:05.9]} 34... Nxf5
{[%clk 0:00:54.8]} 35. Qa8+ {[%clk 0:00:06.1]} 35... Kh7 {[%clk 0:00:55.1]} 36.
Qxb7 {[%clk 0:00:06.5]} 36... Qd8 {[%clk 0:00:39.7]} 37. Qxf7 {[%clk 0:00:06.2]}
37... Nxe3 {[%clk 0:00:31.9]} 38. Ne6 {[%clk 0:00:04.2]} 38... Qg8 {[%clk
0:00:15.3]} 39. Qxg8+ {[%clk 0:00:04]} 39... Kxg8 {[%clk 0:00:16.2]} 40. b7
{[%clk 0:00:04.8]} 40... Nd7 {[%clk 0:00:17.1]} 41. Nxd7 {[%clk 0:00:04.8]}
41... Kf7 {[%clk 0:00:18]} 42. Ndc5 {[%clk 0:00:04.5]} 42... Nc4 {[%clk
0:00:17.7]} 43. b8=Q {[%clk 0:00:05.4]} 43... Nd6 {[%clk 0:00:18.6]} 44. Qf8+
{[%clk 0:00:05.2]} 44... Kg6 {[%clk 0:00:16.9]} 45. Qxd6 {[%clk 0:00:05.2]}
45... Kh5 {[%clk 0:00:17]} 46. Nxg7+ {[%clk 0:00:04.5]} 46... Kh4 {[%clk
0:00:17.1]} 47. Qxh6+ {[%clk 0:00:04.9]} 47... Kg3 {[%clk 0:00:17.7]} 48. Nf5#
{[%clk 0:00:05]} 1-0

[Event "*** SCC Grand Prix: Titled Tuesday Blitz"]
[Site "Chess.com"]
[Date "2020.09.08"]
[Round "8"]
[White "Leonid_Starozhilov"]
[Black "PIwan"]
[Result "1-0"]
[WhiteElo "2690"]
[BlackElo "2553"]
[TimeControl "180+1"]
[EndTime "11:36:57 PDT"]
[Termination "Leonid_Starozhilov won on time"]

1. e4 {[%clk 0:03:00.9]} 1... e6 {[%clk 0:02:59.6]} 2. d3 {[%clk 0:02:57.8]}
2... d5 {[%clk 0:03:00.5]} 3. Nd2 {[%clk 0:02:58.7]} 3... Nf6 {[%clk 0:03:00.5]}
4. Ngf3 {[%clk 0:02:59.1]} 4... Nc6 {[%clk 0:03:00.9]} 5. c3 {[%clk 0:02:59.2]}
5... a5 {[%clk 0:02:58.3]} 6. e5 {[%clk 0:02:56.9]} 6... Nd7 {[%clk 0:02:58.4]}
7. d4 {[%clk 0:02:57.4]} 7... f6 {[%clk 0:02:58.5]} 8. Bb5 {[%clk 0:02:55.2]}
8... fxe5 {[%clk 0:02:54]} 9. dxe5 {[%clk 0:02:50.6]} 9... Be7 {[%clk
0:02:52.6]} 10. Bxc6 {[%clk 0:02:31.7]} 10... bxc6 {[%clk 0:02:53.5]} 11. Nd4
{[%clk 0:02:32.1]} 11... Nxe5 {[%clk 0:02:43.9]} 12. Qh5+ {[%clk 0:02:32]} 12...
Ng6 {[%clk 0:02:39.4]} 13. Nxc6 {[%clk 0:02:31.7]} 13... Qd6 {[%clk 0:02:38.2]}
14. Nxe7 {[%clk 0:02:31.5]} 14... Qxe7 {[%clk 0:02:38.8]} 15. Nf3 {[%clk
0:02:29.2]} 15... Ba6 {[%clk 0:01:57.6]} 16. Be3 {[%clk 0:01:54.5]} 16... Rb8
{[%clk 0:01:10.3]} 17. O-O-O {[%clk 0:01:42]} 17... Be2 {[%clk 0:00:39.7]} 18.
Rd2 {[%clk 0:01:41.9]} 18... Bxf3 {[%clk 0:00:40.1]} 19. Qxf3 {[%clk 0:01:34.4]}
19... Ne5 {[%clk 0:00:40.5]} 20. Qh5+ {[%clk 0:01:34.5]} 20... Nf7 {[%clk
0:00:30.5]} 21. Bd4 {[%clk 0:01:24.1]} 21... O-O {[%clk 0:00:28.4]} 22. Re1
{[%clk 0:00:49.3]} 22... c5 {[%clk 0:00:27]} 23. Be5 {[%clk 0:00:49.5]} 23...
Rb6 {[%clk 0:00:26]} 24. Qg4 {[%clk 0:00:43.9]} 24... Nxe5 {[%clk 0:00:25.5]}
25. Rxe5 {[%clk 0:00:43.6]} 25... Qf6 {[%clk 0:00:16.5]} 26. Rde2 {[%clk
0:00:35.8]} 26... Qf4+ {[%clk 0:00:14.6]} 27. Qxf4 {[%clk 0:00:35.9]} 27... Rxf4
{[%clk 0:00:15.5]} 28. g3 {[%clk 0:00:33.2]} 28... Rf6 {[%clk 0:00:14]} 29. f4
{[%clk 0:00:33]} 29... Kf7 {[%clk 0:00:14.4]} 30. b3 {[%clk 0:00:30.9]} 30...
Rh6 {[%clk 0:00:12.3]} 31. f5 {[%clk 0:00:28.6]} 31... Rf6 {[%clk 0:00:08.7]}
32. fxe6+ {[%clk 0:00:25.2]} 32... Rbxe6 {[%clk 0:00:09.4]} 33. Kb2 {[%clk
0:00:13.8]} 33... Rxe5 {[%clk 0:00:07.3]} 34. Rxe5 {[%clk 0:00:14.7]} 34... Rf2+
{[%clk 0:00:07.8]} 35. Ka3 {[%clk 0:00:15.2]} 35... Rd2 {[%clk 0:00:07.5]} 36.
h4 {[%clk 0:00:10.2]} 36... Kf6 {[%clk 0:00:07.5]} 37. Re8 {[%clk 0:00:09.9]}
37... Rd3 {[%clk 0:00:07.4]} 38. Ka4 {[%clk 0:00:08.1]} 38... Rxc3 {[%clk
0:00:05.9]} 39. Kxa5 {[%clk 0:00:08.5]} 39... Rxg3 {[%clk 0:00:06]} 40. Kb5
{[%clk 0:00:08.6]} 40... Rc3 {[%clk 0:00:04.6]} 41. Re2 {[%clk 0:00:04.8]} 1-0